Cogmind - Beta 14 @@@ ROGUE MODE // 2024.11.20 @ 10:10:16 Player: Fangrelle Result: Destroyed by G-47 Trooper with Particle Gun Performance ------------- Evolutions (2) 1000 Regions Visited (7) 1400 Robots Destroyed (116) 580 Value Destroyed (2665) 2665 Prototype IDs (32) 640 Alien Tech Used (0) 0 Bonus (552) 552 TOTAL SCORE: 6837 Bonus ------- High Alert Combat Kills 238 Follower Combat Kills 50 Aligned with FarCom 300 Friendly Fire -36 Cogmind --------- Core Integrity 0/550 Matter 229/300 Energy 100/100 System Corruption 4% Temperature Cool (9) Movement Core (50) Location -8/Materials Parts ------- > --- POWER (1) -------- (None) > --- PROPULSION (2) --- (None) > --- UTILITY (6) ------ (None) > --- WEAPON (2) ------- (None) > --- INVENTORY (5) ---- Light Treads Advanced Heat Sink Splice Drone Bay (6/6) Missile Launcher Mining Laser Peak State ------------ > --- POWER ------------ Light Nuclear Core > --- PROPULSION ------- Light Treads Armored Wheel > --- UTILITY ---------- Humpback Improved Utility Shielding Medium Armor Plating Medium Armor Plating Hardened Light Armor Plating > --- WEAPON ----------- Improved Assault Rifle Enhanced Autogun > --- INVENTORY -------- Light Treads Improved Flight Unit Improved Flight Unit Advanced Heat Sink High-capacity Storage Unit Huge Storage Unit High-capacity Matter Pod Experimental Sensor Array Signal Interpreter Improved Terrain Scanner ECM Suite Reaction Control System Improved Utility Shielding Light Armor Plating Improved Trap Extractor Recalibrator Splice Drone Bay Improved EM Shotgun Beamcaster Latent Energy Streamer Assault Cannon Flak Cannon Missile Launcher Missile Launcher Mining Laser Chainsword Ripper [Rating: 33] Favorites ----------- Power Heavy Ion Engine Engine Heavy Ion Engine Power Core Light Nuclear Core Propulsion Light Treads Treads Light Treads Leg Aluminum Leg Wheel Armored Wheel Flight Unit Improved Flight Unit Utility Medium Armor Plating Device Improved Terrain Scanner Storage Huge Storage Unit Protection Medium Armor Plating Weapon Improved EM Shotgun Energy Gun Improved EM Shotgun Energy Cannon Advanced Beam Cannon Ballistic Gun Improved Assault Rifle Ballistic Cannon Flak Cannon Launcher Missile Launcher Special Weapon Mining Laser Slashing Weapon Ripper Build | -11 -10 -10 -9 -9 -9 -8 -8 ------- Run | Yrd Mat Min Mat Min Exi Min Mat Slots Evolved 4 | . . . 2 . . . 2 Power . | . . . . . . . . Propulsion . | . . . . . . . . Utility 4 | . . . 2 . . . 2 Weapon . | . . . . . . . . Parts Attached 100 | 1 15 1 62 4 2 4 11 Power 6 | . 2 . 3 . . 1 . Engine 5 | . 2 . 3 . . . . Core 1 | . . . . . . 1 . Reactor . | . . . . . . . . Propulsion 17 | . 5 . 12 . . . . Treads 14 | . 5 . 9 . . . . Leg . | . . . . . . . . Wheel 2 | . . . 2 . . . . Hover . | . . . . . . . . Flight 1 | . . . 1 . . . . Utility 33 | 1 4 1 20 . 2 . 5 Device 7 | 1 . . 5 . . . 1 Storage 5 | . 3 1 . . 1 . . Processor . | . . . . . . . . Hackware . | . . . . . . . . Protection 21 | . 1 . 15 . 1 . 4 Artifact . | . . . . . . . . Weapon 44 | . 4 . 27 4 . 3 6 Energy Gun 24 | . 2 . 15 2 . 3 2 Energy Cannon 1 | . . . 1 . . . . Ballistic Gun 7 | . 1 . 4 . . . 2 Ballistic Cannon 1 | . . . . . . . 1 Launcher 5 | . . . 3 2 . . . Special Weapon 3 | . 1 . 2 . . . . Impact Weapon . | . . . . . . . . Slashing Weapon 3 | . . . 2 . . . 1 Piercing Weapon . | . . . . . . . . Special Melee Weapon . | . . . . . . . . Unidentified Prototypes 9 | . . . 8 . . . 1 Parts Lost 31 | . 2 . 13 . . 2 14 Power 2 | . . . 1 . . . 1 Propulsion 7 | . 1 . 4 . . . 2 Utility 12 | . . . 4 . . . 8 Weapon 10 | . 1 . 4 . . 2 3 Highest Loss Streak 14 | . 1 . 6 . . 1 14 To Critical Strikes . | . . . . . . . . Average Slot Usage (%) 90 | . 92 100 94 100 67 81 61 Engine 8 | . 14 14 7 11 11 . . Core 2 | . . . . . . 10 6 Treads 17 | . 22 28 20 11 11 11 6 Wheel 4 | . . . 1 11 11 11 6 Device 4 | . 12 . 8 . . . 1 Storage 11 | . 14 14 11 11 10 11 8 Protection 20 | . 1 14 23 33 23 22 20 Energy Gun 14 | . 19 28 14 13 . 15 7 Ballistic Gun 2 | . 3 . 4 . . . 3 Launcher 1 | . . . . 8 . . . Peak Build Rating 33 | 9 9 10 31 25 25 27 33 Average Rating 20 | 7 8 9 24 24 19 24 23 On Entrance 15 | 6 9 8 10 24 25 21 24 Naked Turns 17 | . . . . . . . 17 Heaviest Build 232 | 12 89 91 115 117 222 228 232 Greatest Support 46 | 20 40 40 46 12 12 12 12 Greatest Overweight (x) 69 | . 4 2 9 9 18 18 69 Average Overweight (x) 6 | . . 1 2 9 14 18 19 Largest Inventory Capacity 35 | 8 25 25 25 25 35 35 35 Average Capacity 25 | 8 10 23 25 25 32 35 32 Most Carried 29 | 6 10 14 25 25 29 29 29 Average Carried 21 | 6 6 12 22 24 24 28 25 Final Capacity 35 | 8 10 25 25 25 35 35 5 Final Carried 29 | 6 10 14 23 25 29 29 5 Class Distribution -------------------- 71% | Mutant 27% | Hauler-Mutant Dominant Class ---------------- Mutant | -10/Materials Mutant | -10/Mines Mutant | -9/Materials Mutant | -9/Mines Hauler-Mutant | -9/Exiles Hauler-Mutant | -8/Mines Hauler-Mutant | -8/Materials Resources | -11 -10 -10 -9 -9 -9 -8 -8 ----------- Run | Yrd Mat Min Mat Min Exi Min Mat Matter Collected 1875 | 210 166 . 1211 114 . 127 47 Remotely . | . . . . . . . . Salvage Created 4236 | 76 447 . 3033 101 . 288 291 Parts 264 | 5 29 . 185 7 . 24 14 Haulers Intercepted 9 | . 2 . 6 . . . 1 Recyclers Shooed 2 | . . . 2 . . . . Parts Field Recycled . | . . . . . . . . Retrieved Matter . | . . . . . . . . Parts Self-Destructed . | . . . . . . . . Prevented . | . . . . . . . . Kills | -11 -10 -10 -9 -9 -9 -8 -8 ------- Run | Yrd Mat Min Mat Min Exi Min Mat Combat Hostiles Destroyed 78 | . 10 . 50 2 . 10 6 Melee 3 | . . . 2 . . . 1 Guns 61 | . 9 . 41 2 . 8 1 Cannons 4 | . . . . . . . 4 AOE 9 | . . . 7 . . 2 . Classes Destroyed 15 | 2 6 . 6 . . . 1 Worker 7 | . 1 . 6 . . . . Builder 1 | . . . 1 . . . . Tunneler 4 | 1 . . 2 . . 1 . Hauler 9 | . 2 . 6 . . . 1 Recycler 6 | 1 . . 5 . . . . Mechanic 2 | . . . 2 . . . . Operator 1 | . 1 . . . . . . Watcher 8 | . 3 . 5 . . . . Swarmer 26 | . 4 . 15 . . 7 . Grunt 32 | . 6 . 20 1 . 3 2 Brawler 5 | . . . 3 1 . . 1 Duelist 1 | . . . 1 . . . . Protector 1 | . . . 1 . . . . Sentry 12 | . . . 10 . . . 2 Hunter 1 | . . . . . . . 1 Best Kill Streak 9 | 2 4 . 9 2 . 4 6 Combat Bots Only 8 | . 3 . 8 2 . 4 6 Max Kills in Single Turn 3 | 1 1 . 3 1 . 2 1 Gunslinging 1 | . . . 1 . . 1 . Exploded 2 | . . . 2 . . 1 . Melee 1 | . . . 1 . . . 1 Uniques/NPCs Destroyed . | . . . . . . . . Combat | -11 -10 -10 -9 -9 -9 -8 -8 -------- Run | Yrd Mat Min Mat Min Exi Min Mat Hostile Shots Fired 589 | . 58 . 331 1 . 31 168 Missed 164 | . 23 . 86 . . 11 44 Damage Taken 6292 | . 692 . 3328 25 . 312 1935 Core 1062 | . 186 . 321 . . 5 550 Absorbed by Shields . | . . . . . . . . Redirected to Shielding 102 | . . . . . . . 102 Regen/Repaired (Parts) 81 | . . . 81 . . . . Core Remaining (%) 47 | 100 . 25 . . . 18 . Volleys Fired 276 | 3 60 . 177 5 . 13 18 Largest 2 | 2 2 . 2 2 . 2 2 Hottest 125 | 90 100 . 125 90 . 90 98 Shots Fired 462 | 6 111 . 284 11 . 26 24 Gun 431 | 6 104 . 271 10 . 26 14 Cannon 10 | . . . . . . . 10 Launcher 7 | . . . 6 1 . . . Special 14 | . 7 . 7 . . . . Kinetic 141 | . 11 . 114 . . . 16 Thermal 156 | 6 100 . 43 . . . 7 Explosive 7 | . . . 6 1 . . . Electromagnetic 158 | . . . 121 10 . 26 1 Robot Hit Streak 18 | 3 10 . 18 8 . 9 9 Robot Miss Streak 6 | 1 4 . 6 2 . 4 3 Penetration Max . | . . . . . . . . Secondary Targets 10 | . . . 9 . . 1 . Max Gunslinging Chain 1 | . . . 1 . . 1 . Shots Hit Robots 315 | 3 60 . 204 6 . 19 23 Core Hits 191 | 3 24 . 118 5 . 21 20 Critical Kills . | . . . . . . . . Critical Parts Destroyed 1 | . . . 1 . . . . Critical Strikes 9 | 1 3 . 2 . . . 3 Burn 8 | 1 3 . 1 . . . 3 Destroy 1 | . . . 1 . . . . Melee Attacks 12 | . . . 9 . . . 3 Impact . | . . . . . . . . Slashing 12 | . . . 9 . . . 3 Piercing . | . . . . . . . . Sneak Attacks 1 | . . . 1 . . . . Combat Hostiles . | . . . . . . . . Follow-up Attacks . | . . . . . . . . Damage Inflicted 6049 | 35 742 22 4129 148 . 536 437 Guns 4530 | 35 700 . 3199 109 . 292 195 Cannons 217 | . . . . . . . 217 Explosions 963 | . . . 698 36 . 229 . Melee 246 | . . . 221 . . . 25 Ramming 69 | . 18 22 11 3 . 15 . Kinetic 1377 | . 35 . 1069 . . . 273 Thermal 2195 | 35 689 . 1114 . . 229 128 Explosive 66 | . . . 30 36 . . . Electromagnetic 2096 | . . . 1684 109 . 292 11 Impact . | . . . . . . . . Slashing 246 | . . . 221 . . . 25 Piercing . | . . . . . . . . Highest Corruption 4 | . . . 2 2 2 2 4 Average Corruption 2 | . . . 2 2 2 2 3 Corruption Purged . | . . . . . . . . Corruption Blocked . | . . . . . . . . Effects 82 | . . . 1 32 21 26 2 Message Errors 18 | . . . . 5 6 7 . Matter Fused 18 | . . . . 9 3 6 . Heat Flow Errors 14 | . . . 1 5 4 4 . Energy Discharges 10 | . . . . 4 1 3 2 Parts Fused 3 | . . . . 1 2 . . Data Loss (minor) 11 | . . . . 4 3 4 . Data Loss (major) 2 | . . . . . 1 1 . Misfires 3 | . . . . 2 . 1 . Alerts 3 | . . . . 2 1 . . Overload Shots . | . . . . . . . . Overflow Damage 9 | . . . 3 . . 6 . Projectiles . | . . . . . . . . Explosions 9 | . . . 3 . . 6 . Melee . | . . . . . . . . Knockbacks 3 | . . . . . . . 3 Impact . | . . . . . . . . Kinetic 3 | . . . . . . . 3 Secondary . | . . . . . . . . Self-Inflicted Damage 229 | . . . 165 1 . 63 . Shots 9 | . . . 7 . . 2 . Rammed 14 | . 5 3 2 1 . 3 . Targets Rammed 17 | . 6 3 4 1 . 3 . Kicked . | . . . . . . . . Crushed 3 | . 1 . 2 . . . . Highest Temperature 493 | 90 312 . 493 266 251 228 279 Average Temperature 111 | 40 87 . 133 95 111 89 110 Received Heat Transfer 2163 | . 192 . 1155 6 . 81 729 Effects 26 | . 2 . 24 . . . . Shutdowns 5 | . . . 5 . . . . Energy Bleed 4 | . 1 . 3 . . . . Interference 6 | . . . 6 . . . . Matter Decay 2 | . . . 2 . . . . Short Circuit 2 | . 1 . 1 . . . . Damage (minor) 3 | . . . 3 . . . . Damage (major) 4 | . . . 4 . . . . Siege Activations . | . . . . . . . . Robots Corrupted . | . . . . . . . . Combat Hostiles . | . . . . . . . . Parts Fried 7 | . . . 7 . . . . Impact Corruptions . | . . . . . . . . Robots Melted 1 | . 1 . . . . . . Combat Hostiles 1 | . 1 . . . . . . Parts Melted 11 | 1 5 . 2 . . . 3 Heat Transferred 4837 | 161 2032 . 1850 . . 350 444 Parts Sabotaged . | . . . . . . . . Parts Stolen . | . . . . . . . . Parts Stripped . | . . . . . . . . Power Chain Reactions 14 | . . . 10 . . 4 . Alert | -11 -10 -10 -9 -9 -9 -8 -8 ------- Run | Yrd Mat Min Mat Min Exi Min Mat Peak Influence 933 | 10 203 42 933 368 . 185 110 Initial 363 | . 6 16 . 363 . . . Average 182 | 8 48 4 379 106 . 18 16 Maximum Alert Level 3 | . 1 . 3 1 . . . Low Security (%) 67 | 100 99 100 27 80 . 100 100 Level 1 10 | . . . 17 19 . . . Level 2 17 | . . . 42 . . . . Level 3 4 | . . . 11 . . . . Level 4 . | . . . . . . . . Level 5 . | . . . . . . . . High Security . | . . . . . . . . Max Security . | . . . . . . . . Sterilizations 1 | . . . 1 . . . . Squads Dispatched 10 | . 3 1 4 . . . 2 Investigation 3 | . 2 . 1 . . . . Extermination . | . . . . . . . . Reinforcement 2 | . 1 . . . . . 1 Assault 4 | . . 1 3 . . . . Garrison 1 | . . . . . . . 1 Intercept . | . . . . . . . . Searches Triggered . | . . . . . . . . Construction Impeded . | . . . . . . . . Haulers Reinforced . | . . . . . . . . Active Scanning Responses . | . . . . . . . . Cargo Convoy Interrupts . | . . . . . . . . Stealth | -11 -10 -10 -9 -9 -9 -8 -8 --------- Run | Yrd Mat Min Mat Min Exi Min Mat Distress Signals 7 | . 1 . 6 . . . . Communications Jammed . | . . . . . . . . Distress Signals . | . . . . . . . . Times Spotted 119 | . 21 . 74 2 . 10 12 Peak Tracking Total 8 | . 4 . 8 2 . 3 6 Tactical Retreats 4 | . 2 . 2 . . . . Traps | -11 -10 -10 -9 -9 -9 -8 -8 ------- Run | Yrd Mat Min Mat Min Exi Min Mat Traps Triggered 2 | . . . 2 . . . . Indirectly . | . . . . . . . . Trap Hack Attempts . | . . . . . . . . Triggered . | . . . . . . . . Disarmed . | . . . . . . . . Reprogrammed . | . . . . . . . . Reused . | . . . . . . . . Traps Extracted . | . . . . . . . . Installed . | . . . . . . . . Triggered . | . . . . . . . . Machines | -11 -10 -10 -9 -9 -9 -8 -8 ---------- Run | Yrd Mat Min Mat Min Exi Min Mat Machines Disabled 7 | . . . 5 2 . . . Max in Single Turn 2 | . . . 1 2 . . . Machines Repaired . | . . . . . . . . Machines Dismantled . | . . . . . . . . Machines Sabotaged . | . . . . . . . . Overloaded Fab Kills . | . . . . . . . . Hacking | -11 -10 -10 -9 -9 -9 -8 -8 --------- Run | Yrd Mat Min Mat Min Exi Min Mat Machines Accessed 29 | . 9 1 14 2 2 1 . Terminals 21 | . 7 . 12 1 . 1 . Fabricators . | . . . . . . . . Repair Stations 1 | . . . 1 . . . . Recycling Units 3 | . 2 . 1 . . . . Scanalyzers . | . . . . . . . . Garrison Access . | . . . . . . . . Total Hacks 99 | . 33 1 51 5 5 4 . Successful 58 | . 19 1 27 2 5 4 . Failed 41 | . 14 . 24 3 . . . Catastrophic 1 | . 1 . . . . . . Database Lockouts . | . . . . . . . . Manual 85 | . 29 . 47 4 1 4 . Terminals 81 | . 27 . 46 4 . 4 . Fabricators . | . . . . . . . . Repair Stations 2 | . . . 2 . . . . Recycling Units 9 | . 6 . 3 . . . . Scanalyzers . | . . . . . . . . Garrison Access . | . . . . . . . . Terminal Hacks 11 | . 1 1 . 2 5 2 . Record 4 | . . . . . 4 . . Robot Analysis 2 | . 1 . . . . 1 . Open Door 2 | . . 1 . 1 . . . Zone Layout 2 | . . . . 1 . 1 . Derelict Proto ID Bank 1 | . . . . . 1 . . Fabricator Hacks . | . . . . . . . . Repair Station Hacks 2 | . . . 2 . . . . Scan Component 1 | . . . 1 . . . . Repair 1 | . . . 1 . . . . Recycling Unit Hacks 4 | . 2 . 2 . . . . Report Inventory 1 | . . . 1 . . . . Retrieve Components 3 | . 2 . 1 . . . . Scanalyzer . | . . . . . . . . Garrison Access Hacks . | . . . . . . . . Unauthorized Hacks 41 | . 16 . 23 . . 2 . Terminals 39 | . 14 . 23 . . 2 . Assimilate 11 | . 5 . 6 . . . . Botnet 20 | . 7 . 12 . . 1 . Operators 5 | . 2 . 2 . . 1 . Skim 3 | . . . 3 . . . . Fabricators . | . . . . . . . . Repair Stations . | . . . . . . . . Recycling Units 2 | . 2 . . . . . . Tunnel 2 | . 2 . . . . . . Scanalyzers . | . . . . . . . . Garrison Access . | . . . . . . . . Data Cores Recovered . | . . . . . . . . Used . | . . . . . . . . Hacking Detections 24 | . 8 . 14 1 . 1 . Full Trace Events 1 | . . . 1 . . . . Feedback Events . | . . . . . . . . Feedback Blocked . | . . . . . . . . Robot Schematics Acquired . | . . . . . . . . Robots Built . | . . . . . . . . Authchips . | . . . . . . . . Time . | . . . . . . . . Total Robot Build Rating . | . . . . . . . . Part Schematics Acquired . | . . . . . . . . Parts Built . | . . . . . . . . Authchips . | . . . . . . . . Time . | . . . . . . . . Total Part Build Rating . | . . . . . . . . Parts Repaired 1 | . . . 1 . . . . Time 25 | . . . 25 . . . . Parts Recycled . | . . . . . . . . Recycled Matter . | . . . . . . . . Retrieved Matter . | . . . . . . . . Retrieved Components 25 | . 15 . 10 . . . . Parts Scanalyzed . | . . . . . . . . Part Schematics Acquired . | . . . . . . . . Parts Damaged . | . . . . . . . . Bothacking | -11 -10 -10 -9 -9 -9 -8 -8 ------------ Run | Yrd Mat Min Mat Min Exi Min Mat Used RIF Installer . | . . . . . . . . Robots Hacked . | . . . . . . . . Non-combat . | . . . . . . . . Combat . | . . . . . . . . Robot Hacks Applied . | . . . . . . . . Relay Couplers Released . | . . . . . . . . Fabnet Peak Effective % . | . . . . . . . . Robots Rewired . | . . . . . . . . Allies Hacked . | . . . . . . . . Hacks Repelled . | . . . . . . . . Allies | -11 -10 -10 -9 -9 -9 -8 -8 -------- Run | Yrd Mat Min Mat Min Exi Min Mat Total Allies 2 | . . 1 1 . . . . Largest Group 1 | . . 1 1 1 1 1 1 Highest-Rated Group 31 | . . 31 10 10 10 10 10 Highest-Rated Ally 31 | . . 31 10 10 10 10 10 Total Orders 7 | . . . . 4 . 2 1 STAY 4 | . . . . 2 . 1 1 FOLLOW 3 | . . . . 2 . 1 . Ally Attacks 6 | . . 6 . . . . . Total Damage 104 | . . 104 . . . . . Kills 2 | . . 2 . . . . . Allies Corrupted . | . . . . . . . . Allies Melted . | . . . . . . . . Intel | -11 -10 -10 -9 -9 -9 -8 -8 ------- Run | Yrd Mat Min Mat Min Exi Min Mat Robot Analysis Total 2 | . 1 . . . . 1 . Derelict Logs Recovered 2 | . . 1 . 1 . . . Drone Launches . | . . . . . . . . Drone Recoveries . | . . . . . . . . Exploration | -11 -10 -10 -9 -9 -9 -8 -8 ------------- Run | Yrd Mat Min Mat Min Exi Min Mat Turns Passed 16951 | 30 1931 1478 6396 2097 1563 3153 303 Spaces Moved 5378 | 17 876 489 1733 862 488 859 54 Core 1 | . . . . . . . 1 Treads 2872 | . 859 489 1524 . . . . Legs 34 | 17 17 . . . . . . Wheels 2471 | . . . 209 862 488 859 53 Hover . | . . . . . . . . Flight . | . . . . . . . . Fastest Speed 120 | 120 120 160 225 225 120 360 345 Average Speed 282 | 120 163 299 315 225 313 360 423 Slowest Speed 3500 | 120 480 320 560 225 360 360 3500 Overloaded Moves . | . . . . . . . . Propulsion Burnouts . | . . . . . . . . Robots Hopped . | . . . . . . . . Cave-ins Triggered . | . . . . . . . . Exploration Rate (%) 70 | 3 96 97 98 98 65 100 7 Regions Visited 7 Branch Regions 4 Pre-discovered Areas 5 | . 2 1 . 1 1 . . Known Exits Taken . | . . . . . . . . Unknown Exits Taken 7 | 1 1 1 1 1 1 1 . Scrap Searched 4 | . . 1 . 2 . 1 . Spaces Dug 56 | . 5 . 51 . . . . Terrain Destroyed 147 | . 6 . 105 9 . 27 . Melee 1 | . . . 1 . . . . Projectile 13 | . 6 . 7 . . . . AOE 133 | . . . 97 9 . 27 . Terrain Rammed . | . . . . . . . . Walls Destroyed . | . . . . . . . . Machines Disabled . | . . . . . . . . Actions | -11 -10 -10 -9 -9 -9 -8 -8 --------- Run | Yrd Mat Min Mat Min Exi Min Mat Total 6645 | 20 1247 496 2348 1010 530 889 105 Wait 704 | . 274 . 277 133 . 7 13 Move 5371 | 16 875 488 1732 861 487 858 54 Hop . | . . . . . . . . Pick Up 92 | . 9 4 46 4 24 3 2 Fast Attach 20 | 1 1 . 14 . 1 1 2 Attach 36 | . 4 . 20 . . 3 9 Detach 10 | . . . 5 . 2 . 3 Swap 44 | . 10 1 28 4 1 . . Drop 63 | . 8 . 36 2 15 1 1 Fire 276 | 3 60 . 177 5 . 13 18 Melee 12 | . . . 9 . . . 3 Ram 4 | . . . . 1 . 3 . Kick . | . . . . . . . . Crush 13 | . 6 3 4 . . . . Escape Stasis . | . . . . . . . . Rewire . | . . . . . . . . Trap . | . . . . . . . . Miscellaneous . | . . . . . . . . Route ------- -11/Scrapyard -10/Materials (discovered 5 exits: *Mat x3 / *Min x2) -10/Mines (discovered 2 exits: *Mat x2) -9/Materials (discovered 4 exits: [*Mat x3] / *Min) -9/Mines (discovered 3 exits: [*Mat x2] / *Exi) -9/Exiles -8/Mines (discovered 2 exits: [*Mat x2]) -8/Materials History --------- Turn | Location | Event 11 | -11/Scrapyard | Discovered new exit (range 3) 31 | -11/Scrapyard | Entered Materials 301 | -10/Materials | Discovered new exit (range 10) 307 | -10/Materials | Build established: Mutant 502 | -10/Materials | Core integrity fell below 50% 771 | -10/Materials | Discovered new exit (range 14) 1022 | -10/Materials | Discovered new exit (range 12) 1278 | -10/Materials | Discovered new exit (range 6) 1400 | -10/Materials | Discovered new exit (range 16) 1962 | -10/Materials | Entered Mines 2045 | -10/Mines | Found the Drone Emporium 2063 | -10/Mines | Found Prototype Device 2138 | -10/Mines | Learned location of Zion (-7) 2163 | -10/Mines | Discovered new exit (range 15) 2186 | -10/Mines | A weapon hastily lodged in a ceiling crevice suddenly fell to the ground 2408 | -10/Mines | Found a damaged Exp. Sensor Array with a note attached 2414 | -10/Mines | Found Prototype Device 3085 | -10/Mines | Met a Derelict testing a Signal Generator 3087 | -10/Mines | Discovered new exit (range 12) 3440 | -10/Mines | Entered Materials 3440 | -9/Materials | Evolved 2 slots: Utility x2 3634 | -9/Materials | Identified Splice Drone Bay 3636 | -9/Materials | Identified Exp. Sensor Array 5235 | -9/Materials | Discovered new exit (range 5) 5629 | -9/Materials | Core integrity fell below 50% 6072 | -9/Materials | Discovered new exit (range 16) 7975 | -9/Materials | Discovered new exit (range 13) 9040 | -9/Materials | First assault squad dispatched 9406 | -9/Materials | Discovered new exit (range 11) 9485 | -9/Materials | Repaired Beamcaster 9593 | -9/Materials | Core integrity fell below 20% 9627 | -9/Materials | Sterilization system engaged 9627 | -9/Materials | Non-combat units ordered to evacuate 9633 | -9/Materials | Lost 6 parts (2n3u1w) 9645 | -9/Materials | Destroyed 8 combat bots 9727 | -9/Materials | Combat units ordered to evacuate 9836 | -9/Materials | Entered Mines 9836 | -9/Mines | Accompanied by 1 ally 9857 | -9/Mines | Met a Derelict bent on vengeance 10042 | -9/Mines | Assembled infested the area 10563 | -9/Mines | Met a Derelict who couldn't figure out how to use a Trap Extractor 10978 | -9/Mines | Discovered new exit (range 8) 11095 | -9/Mines | Deemed a non-threat by the Exiles lab entrance 11095 | -9/Mines | Discovered new exit (range 5) 11154 | -9/Mines | Discovered new exit (range 13) 11933 | -9/Mines | Entered Exiles 11933 | -9/Exiles | Accompanied by 1 ally 11992 | -9/Exiles | Met 8R-AWN 12027 | -9/Exiles | Met EX-HEX 12487 | -9/Exiles | Build established: Hauler-Mutant 12522 | -9/Exiles | Met EX-DEC 12987 | -9/Exiles | Met EX-BIN 13038 | -9/Exiles | Aligned with FarCom system 13041 | -9/Exiles | Given EX-Vault access code 13124 | -9/Exiles | Opened EX-Vault 13149 | -9/Exiles | Found Latent Energy Streamer 13233 | -9/Exiles | Warned to stay clear of 0b10 Research branches 13449 | -9/Exiles | Discovered new exit (range 14) 13496 | -9/Exiles | Left Exiles lab with Latent Energy Streamer 13496 | -9/Exiles | Entered Mines 13496 | -8/Mines | Accompanied by 1 ally 15040 | -8/Mines | Discovered new exit (range 5) 16066 | -8/Mines | Discovered new exit (range 9) 16649 | -8/Mines | Entered Materials 16649 | -8/Materials | Accompanied by 1 ally 16649 | -8/Materials | Evolved 2 slots: Utility x2 16858 | -8/Materials | Garrison activated, responded to threat 16900 | -8/Materials | Core integrity fell below 50% 16944 | -8/Materials | Core integrity fell below 20% 16952 | -8/Materials | Destroyed by G-47 Trooper with Particle Gun Last Messages --------------- 16900_ G-47 Trooper knocked back. 16903_ K-01 Serf collects debris. 16904_ G-47 Trooper knocked back. 16904_ G-47 Trooper destroyed. 16906_ K-01 Serf collects debris. 16912_ Y-45 Defender destroyed. 16914_ Imp. Terrain Scanner destroyed. 16918_ System corrupted: Energy discharge (-12). 16918_ Y-45 Defender destroyed. 16920_ Acquired Lgt. Armor Plating. 16924_ R-06 Scavenger collects Hvy. Hammer. 16928_ R-06 Scavenger collects Shock Rifle. 16931_ Humpback destroyed. 16931_ R-06 Scavenger collects Huge Storage Unit. 16933_ Flak Cannon destroyed. 16934_ R-06 Scavenger collects Enh. Autogun. 16935_ Lgt. Armor Plating destroyed. 16942_ K-01 Serf collects debris. 16943_ Critical hit (Burn: +37). 16946_ K-01 Serf collects debris. Map ----- +----------------------------------------------------+ | ?????????????????????????????????????????????????? | | ?????????????????????????????????????????????????? | | ?????????????????????????????????????????????????? | | ?????????????????????????????????????????????????? | | ?????????????????????????????????????????????????? | | ????????###############??????????????????????????? | | ????????# # #??????????????????????????? | | ????????# # #??????????????????????????? | | ????????# # #??????????????????????????? | | ????????# + ########???????????????????? | | ????????# # #???????????????????? | | ????????# # ##??????????????????? | | ????????# # #???????????????????? | | ????????# ######## #???????????????????? | | ????????########### # #?????w?????????????? | | ??????????????????# # #???????????????????? | | ??????????????????# + #???????????????????? | | ??????????????????# # #??????#????????????? | | ??????????????????# # #????? #????????????? | | ?????????????#????# ?# #???? #????????????? | | ??????????????????######?# #?#? ##???????????? | | ?????????????????????????#! ### #???????????? | | ?????????????## ????????#][*[%=g # w"????????? | | ?????????????# #######/!*%[! g %k "????????? | | ?????????????# = !!!==*=%|%! g #???????????? | | ?????????????+ %= ]!/!@%/!### #???????????? | | ?????????????# [ k=[!!] =#??# ##???????????? | | ?????????????# ###!####!##??? #??? ????????? | | ?????????????###????# ???#o#????? #????????????? | | ???????????? ???????# ????# #?????? #????????????? | | ????????????????????#?????# #??????????#?????????? | | ??????????????????????????# ##???????????????????? | | ??????????????????????????# #???????##???????????? | | ????????????????????#?????? #?#??????????????????? | | ??????????????????????????? #???????????s????????? | | ??????????????????????????? #??????????s?????????? | | ??????????????????????????? ???????????s?????????? | | ?????????????????????????????????????????????????? | | ????????????????????????????????????#????????????? | | ?????????????????????????????????????????????????? | | ?????????????????????????????#???????????????????? | | ?????????????????????????????????????????????????? | | ?????????????????????????????????????????????????? | | ?????????????????????????????????????????????????? | | ?????????????????????????????????????????????????? | | ?????????????????????????????????????????????????? | | ?????????????????????????????????????????????????? | | ?????????????????????????????????????????????????? | | ?????????????????????????????????????????????????? | | ?????????????????????????????????????????????????? | +----------------------------------------------------+ Best States ------------- Heat Dissipation 42 Energy Generation 14 Energy Capacity 280 Matter Stores 300 Matter Capacity 300 Sight Range 16 Robot Scan Range 20 Terrain Scan Range 16 Terrain Scan Density 10 Armor Coverage 675 Utility Shielding 66 Evasion (%) 55 Recoil Reduction 2 Item Schematics ----------------- None Robot Schematics ------------------ None Fabricated ------------ Nothing Alien Tech Used ----------------- None Achievements -------------- None Challenges ------------ None Game ------ Seed NetworkPiercingCoupler Manual? 0 Play Time 01:07:25 Cumulative 122.6 hours Start 2024.11.19 @ 23:20:16 End 2024.11.20 @ 10:10:16 Sessions 5 Manual Loads 0 Difficulty Rogue Special Mode None Game No. 227 Rogue 227 Adventurer 0 Explorer 0 Win Type - Total 0 Types 0/0/0/0/0/0/0/0/0 Lore% 43 Gallery% 40 Achievement% 36 Wizard Run 0 Options --------- Layout 0 ASCII 0 Keyboard 0 Movement Mouse Keybinds 0 Fullscreen 1 Font 24/Smallcaps Map View 91x25 Zoom Use 83% Tactical HUD 1 Map Filters NONE Filters NONE Steam 1 RUN: b5aae9d0-9cb5-4d1c-ac14-ccb947217122